fUSD/lending_fUSD_20260611
["ID","MTS","AMOUNT","RATE_DAILY","PERIOD"]
[424779605,1781157045000,-161.92,0.000148,2]
[424779609,1781157045000,-150.0,0.00014808,2]
[424779607,1781157045000,-150.0,0.00014803,2]
[424779603,1781157045000,-500.0,0.00014799,2]
[424779608,1781157045000,-254.58489995,0.00014805,2]
[424779597,1781157045000,-777.03,0.00014799,2]
[424779606,1781157045000,-3800.0,0.000148,5]
[424779610,1781157045000,-254.58489995,0.0001482,2]
[424779620,1781157045000,-150.0,0.00014871,2]
[424779621,1781157045000,-5800.0,0.00014874,2]
[424779613,1781157045000,-254.58489995,0.00014835,2]
[424779614,1781157045000,-150.0,0.00014836,2]
[424779618,1781157045000,-150.0,0.00014864,2]
[424779615,1781157045000,-150.0,0.00014844,2]
[424779616,1781157045000,-150.0,0.00014846,2]
[424779612,1781157045000,-150.0,0.00014833,2]
[424779611,1781157045000,-150.0,0.00014833,2]
[424779617,1781157045000,-254.58489995,0.0001485,2]
[424779677,1781157046000,-254.58489995,0.00014941,2]
[424779674,1781157046000,-150.0,0.00014925,2]
[424779672,1781157046000,-1484.85,0.00014919,2]
[424779671,1781157046000,-150.0,0.00014915,2]
[424779669,1781157046000,-150.0,0.00014909,2]
[424779670,1781157046000,-254.58489995,0.00014911,2]
[424779678,1781157046000,-150.0,0.00014948,2]
[424779676,1781157046000,-150.0,0.00014939,2]
[424779681,1781157046000,-254.58489995,0.00014956,2]
[424779686,1781157046000,-150.0,0.00014986,2]
[424779684,1781157046000,-466.42,0.00014985,2]
[424779685,1781157046000,-203.8,0.00014985,2]
[424779687,1781157046000,-225.43309031,0.00014986,2]
[424779683,1781157046000,-254.58489995,0.00014971,2]
[424779682,1781157046000,-4702.0,0.00014959,2]
[424779679,1781157046000,-150.0,0.00014951,2]
[424779675,1781157046000,-254.58489995,0.00014926,2]
[424779673,1781157046000,-202.46385348,0.00014925,2]
[424779656,1781157046000,-985.2,0.00014899,2]
[424779665,1781157046000,-55361.3909486,0.000149,2]
[424779648,1781157046000,-500.0,0.00014899,2]
[424779652,1781157046000,-639.53,0.00014899,2]
[424779653,1781157046000,-500.0,0.00014899,2]
[424779654,1781157046000,-500.0,0.00014899,2]
[424779651,1781157046000,-500.0,0.00014899,11]
[424779649,1781157046000,-500.0,0.00014899,2]
[424779650,1781157046000,-500.0,0.00014899,2]
[424779667,1781157046000,-84119.56863544,0.000149,2]
[424779666,1781157046000,-3800.0,0.000149,5]
[424779658,1781157046000,-500.0,0.00014899,2]
[424779657,1781157046000,-500.0,0.00014899,2]
[424779661,1781157046000,-2000.0,0.000149,2]
[424779660,1781157046000,-5998.5998,0.000149,2]
[424779663,1781157046000,-5800.0,0.000149,2]
[424779664,1781157046000,-1226.67955219,0.000149,2]
[424779659,1781157046000,-33277.9515,0.000149,2]
[424779662,1781157046000,-25000.0,0.000149,3]
[424779668,1781157046000,-2000.0,0.000149,2]
[424779688,1781157046000,-150.75812701,0.00014986,2]
[424779680,1781157046000,-150.0,0.00014956,2]
[424779691,1781157046000,-248.12091067,0.00014986,2]
[424779714,1781157046000,-639.53,0.00014987,2]
[424779715,1781157046000,-500.0,0.00014987,2]
[424779724,1781157046000,-500.0,0.00014987,2]
[424779713,1781157046000,-639.53,0.00014987,2]
[424779725,1781157046000,-500.0,0.00014987,2]
[424779720,1781157046000,-500.0,0.00014987,2]
[424779716,1781157046000,-500.0,0.00014987,2]
[424779721,1781157046000,-985.2,0.00014987,2]
[424779723,1781157046000,-985.2,0.00014987,2]
[424779717,1781157046000,-500.0,0.00014987,2]
[424779719,1781157046000,-500.0,0.00014987,2]
[424779722,1781157046000,-985.2,0.00014987,2]
[424779726,1781157046000,-500.0,0.00014987,2]
[424779727,1781157046000,-1803.3050797,0.00014988,2]
[424779729,1781157046000,-151.0,0.00014997,2]
[424779728,1781157046000,-250.92607846,0.0001499,2]
[424779689,1781157046000,-210.0975545,0.00014986,2]
[424779709,1781157046000,-500.0,0.00014987,2]
[424779707,1781157046000,-500.0,0.00014987,2]
[424779718,1781157046000,-500.0,0.00014987,2]
[424779705,1781157046000,-777.03,0.00014987,2]
[424779706,1781157046000,-777.03,0.00014987,2]
[424779690,1781157046000,-276.09958385,0.00014986,2]
[424779693,1781157046000,-285.87761885,0.00014986,2]
[424779697,1781157046000,-500.0,0.00014987,15]
[424779695,1781157046000,-289.90717118,0.00014986,2]
[424779694,1781157046000,-254.58489995,0.00014986,2]
[424779701,1781157046000,-2144.95,0.00014987,2]
[424779699,1781157046000,-500.0,0.00014987,2]
[424779696,1781157046000,-500.0,0.00014987,14]
[424779692,1781157046000,-208.1114482,0.00014986,2]
[424779700,1781157046000,-549.51495302,0.00014987,2]
[424779703,1781157046000,-2144.95,0.00014987,2]
[424779710,1781157046000,-500.0,0.00014987,13]
[424779711,1781157046000,-500.0,0.00014987,2]
[424779712,1781157046000,-639.53,0.00014987,2]
[424779702,1781157046000,-2144.95,0.00014987,2]
[424779704,1781157046000,-777.03,0.00014987,2]
[424779698,1781157046000,-570.68856785,0.00014987,16]
[424779708,1781157046000,-500.0,0.00014987,12]
[424779768,1781157047000,-777.03,0.00014999,2]
[424779765,1781157047000,-777.03,0.00014999,2]
[424779761,1781157047000,-777.03,0.00014999,2]
[424779762,1781157047000,-777.03,0.00014999,2]
[424779764,1781157047000,-177.357647,0.00014999,2]
[424779760,1781157047000,-777.03,0.00014999,2]
[424779763,1781157047000,-777.03,0.00014999,2]
[424779756,1781157047000,-2144.95,0.00014999,2]
[424779769,1781157047000,-777.03,0.00014999,2]
[424779755,1781157047000,-2144.95,0.00014999,2]
[424779766,1781157047000,-777.03,0.00014999,2]
[424779770,1781157047000,-777.111062,0.00014999,2]
[424779781,1781157047000,-639.53,0.00014999,2]
[424779772,1781157047000,-177.357647,0.00014999,2]
[424779771,1781157047000,-177.357647,0.00014999,2]
[424779775,1781157047000,-500.0,0.00014999,2]
[424779774,1781157047000,-500.0,0.00014999,2]
[424779773,1781157047000,-177.357647,0.00014999,2]
[424779778,1781157047000,-639.53,0.00014999,2]
[424779780,1781157047000,-639.53,0.00014999,2]
[424779776,1781157047000,-500.0,0.00014999,2]
[424779779,1781157047000,-639.53,0.00014999,2]
[424779783,1781157047000,-639.53,0.00014999,2]
[424779759,1781157047000,-777.03,0.00014999,2]
[424779767,1781157047000,-777.03,0.00014999,2]
[424779753,1781157047000,-2144.95,0.00014999,2]
[424779736,1781157047000,-35039.5823902,0.00014999,2]
[424779758,1781157047000,-2145.0058614,0.00014999,2]
[424779735,1781157047000,-500.0,0.00014998,2]
[424779731,1781157047000,-1120.43,0.00014998,2]
[424779737,1781157047000,-13307.4478809,0.00014999,2]
[424779730,1781157047000,-1555.5,0.00014998,2]
[424779733,1781157047000,-500.0,0.00014998,2]
[424779732,1781157047000,-1120.43,0.00014998,2]
[424779782,1781157047000,-639.53,0.00014999,2]
[424779734,1781157047000,-500.0,0.00014998,2]
[424779738,1781157047000,-515047.9579255,0.00014999,2]
[424779740,1781157047000,-1903.8269992,0.00014999,2]
[424779739,1781157047000,-167.0815641,0.00014999,2]
[424779754,1781157047000,-2144.95,0.00014999,2]
[424779747,1781157047000,-1120.62614846,0.00014999,2]
[424779745,1781157047000,-1120.43,0.00014999,2]
[424779744,1781157047000,-1120.43,0.00014999,2]
[424779748,1781157047000,-2144.95,0.00014999,2]
[424779746,1781157047000,-1120.43,0.00014999,2]
[424779742,1781157047000,-151.0,0.00014999,2]
[424779743,1781157047000,-1120.43,0.00014999,2]
[424779750,1781157047000,-2144.95,0.00014999,2]
[424779749,1781157047000,-2144.95,0.00014999,2]
[424779752,1781157047000,-2144.95,0.00014999,2]
[424779751,1781157047000,-2144.95,0.00014999,2]
[424779757,1781157047000,-2144.95,0.00014999,2]
[424779741,1781157047000,-151.0,0.00014999,2]
[424779788,1781157047000,-164.33069,0.00014999,2]
[424779777,1781157047000,-639.53,0.00014999,2]
[424779787,1781157047000,-639.69338711,0.00014999,2]
[424779816,1781157047000,-985.2,0.00014999,2]
[424779818,1781157047000,-985.21101648,0.00014999,2]
[424779817,1781157047000,-985.2,0.00014999,2]
[424779819,1781157047000,-1064.597968,0.00014999,2]
[424779823,1781157047000,-500.0,0.00014999,2]
[424779821,1781157047000,-500.0,0.00014999,2]
[424779820,1781157047000,-1064.597968,0.00014999,2]
[424779826,1781157047000,-500.0,0.00014999,2]
[424779825,1781157047000,-500.0,0.00014999,2]
[424779824,1781157047000,-500.0,0.00014999,2]
[424779827,1781157047000,-500.0,0.00014999,2]
[424779828,1781157047000,-448.30889603,0.00014999,2]
[424779829,1781157047000,-151.0,0.00014999,2]
[424779834,1781157047000,-500.0,0.00014999,2]
[424779831,1781157047000,-151.0,0.00014999,2]
[424779835,1781157047000,-500.0,0.00014999,2]
[424779830,1781157047000,-151.0,0.00014999,2]
[424779836,1781157047000,-500.0,0.00014999,2]
[424779833,1781157047000,-500.0,0.00014999,2]
[424779837,1781157047000,-500.0,0.00014999,2]
[424779832,1781157047000,-151.0,0.00014999,2]
[424779839,1781157047000,-500.0,0.00014999,2]
[424779838,1781157047000,-500.0,0.00014999,2]
[424779784,1781157047000,-639.53,0.00014999,2]
[424779840,1781157047000,-500.0,0.00014999,2]
[424779815,1781157047000,-1064.597968,0.00014999,2]
[424779813,1781157047000,-985.2,0.00014999,2]
[424779822,1781157047000,-500.0,0.00014999,2]
[424779814,1781157047000,-985.2,0.00014999,2]
[424779786,1781157047000,-639.53,0.00014999,2]
[424779808,1781157047000,-985.2,0.00014999,2]
[424779785,1781157047000,-639.53,0.00014999,2]
[424779789,1781157047000,-164.33069,0.00014999,2]
[424779792,1781157047000,-500.0,0.00014999,2]
[424779790,1781157047000,-164.33069,0.00014999,2]
[424779791,1781157047000,-164.33069,0.00014999,2]
[424779805,1781157047000,-409.28734248,0.00014999,2]
[424779795,1781157047000,-500.0,0.00014999,2]
[424779794,1781157047000,-500.0,0.00014999,2]
[424779797,1781157047000,-500.0,0.00014999,2]
[424779803,1781157047000,-500.0,0.00014999,2]
[424779796,1781157047000,-500.0,0.00014999,2]
[424779793,1781157047000,-500.0,0.00014999,2]
[424779810,1781157047000,-985.2,0.00014999,2]
[424779800,1781157047000,-500.0,0.00014999,2]
[424779801,1781157047000,-500.0,0.00014999,2]
[424779798,1781157047000,-130532.557622,0.00014999,2]
[424779804,1781157047000,-500.0,0.00014999,2]
[424779802,1781157047000,-500.0,0.00014999,2]
[424779799,1781157047000,-500.0,0.00014999,2]
[424779806,1781157047000,-1064.597968,0.00014999,2]
[424779811,1781157047000,-985.2,0.00014999,2]
[424779807,1781157047000,-985.2,0.00014999,2]
[424779812,1781157047000,-985.2,0.00014999,2]
[424779809,1781157047000,-985.2,0.00014999,2]
[424779876,1781157048000,-500.0,0.00014999,2]
[424779868,1781157048000,-500.0,0.00014999,2]
[424779875,1781157048000,-500.0,0.00014999,2]
[424779873,1781157048000,-500.0,0.00014999,2]
[424779871,1781157048000,-500.0,0.00014999,2]
[424779874,1781157048000,-500.0,0.00014999,2]
[424779878,1781157048000,-500.0,0.00014999,2]
[424779877,1781157048000,-500.0,0.00014999,2]
[424779872,1781157048000,-500.0,0.00014999,2]
[424779879,1781157048000,-500.0,0.00014999,2]
[424779870,1781157048000,-500.0,0.00014999,2]
[424779882,1781157048000,-500.0,0.00014999,2]
[424779881,1781157048000,-500.0,0.00014999,2]
[424779892,1781157048000,-500.0,0.00014999,2]
[424779884,1781157048000,-500.0,0.00014999,2]
[424779885,1781157048000,-500.0,0.00014999,2]
[424779890,1781157048000,-500.0,0.00014999,2]
[424779889,1781157048000,-500.0,0.00014999,2]
[424779883,1781157048000,-500.0,0.00014999,2]
[424779886,1781157048000,-500.0,0.00014999,2]
[424779887,1781157048000,-500.0,0.00014999,2]
[424779891,1781157048000,-500.0,0.00014999,2]
[424779888,1781157048000,-500.0,0.00014999,2]
[424779893,1781157048000,-500.0,0.00014999,2]
[424779899,1781157048000,-500.0,0.00014999,2]
[424779880,1781157048000,-500.0,0.00014999,2]
[424779867,1781157048000,-500.0,0.00014999,2]
[424779842,1781157048000,-500.0,0.00014999,2]
[424779861,1781157048000,-500.0,0.00014999,2]
[424779898,1781157048000,-500.0,0.00014999,2]
[424779841,1781157048000,-500.0,0.00014999,2]
[424779844,1781157048000,-500.0,0.00014999,2]
[424779846,1781157048000,-500.0,0.00014999,2]
[424779845,1781157048000,-500.0,0.00014999,2]
[424779843,1781157048000,-500.0,0.00014999,2]
[424779847,1781157048000,-500.0,0.00014999,2]
[424779848,1781157048000,-500.0,0.00014999,2]
[424779850,1781157048000,-500.0,0.00014999,2]
[424779849,1781157048000,-500.0,0.00014999,2]
[424779851,1781157048000,-500.0,0.00014999,2]
[424779854,1781157048000,-500.0,0.00014999,2]
[424779852,1781157048000,-500.0,0.00014999,2]
[424779856,1781157048000,-500.0,0.00014999,2]
[424779857,1781157048000,-500.0,0.00014999,2]
[424779853,1781157048000,-500.0,0.00014999,2]
[424779859,1781157048000,-500.0,0.00014999,2]
[424779858,1781157048000,-500.0,0.00014999,2]
[424779855,1781157048000,-500.0,0.00014999,2]
[424779860,1781157048000,-500.0,0.00014999,2]
[424779862,1781157048000,-500.0,0.00014999,2]
[424779863,1781157048000,-500.0,0.00014999,2]
[424779865,1781157048000,-500.0,0.00014999,2]
[424779866,1781157048000,-500.0,0.00014999,2]
[424779864,1781157048000,-500.0,0.00014999,2]
[424779869,1781157048000,-500.0,0.00014999,2]
[424779895,1781157048000,-500.0,0.00014999,2]
[424779944,1781157048000,-6533.64446171,0.00015,2]
[424779903,1781157048000,-500.0,0.00014999,2]
[424779926,1781157048000,-188.14874168,0.00015,10]
[424779929,1781157048000,-150.0,0.00015,2]
[424779936,1781157048000,-1290.19,0.00015,2]
[424779932,1781157048000,-1259.69,0.00015,2]
[424779930,1781157048000,-2000.0,0.00015,2]
[424779928,1781157048000,-255.88865067,0.00015,2]
[424779935,1781157048000,-150.0,0.00015,2]
[424779933,1781157048000,-755.82,0.00015,2]
[424779931,1781157048000,-1023.26,0.00015,2]
[424779934,1781157048000,-2946.46,0.00015,2]
[424779939,1781157048000,-261.52,0.00015,2]
[424779945,1781157048000,-400.0,0.00015,2]
[424779941,1781157048000,-642.87,0.00015,2]
[424779943,1781157048000,-160.72,0.00015,2]
[424779948,1781157048000,-2000.0,0.00015,2]
[424779950,1781157048000,-2000.0,0.00015,2]
[424779949,1781157048000,-2000.0,0.00015,2]
[424779951,1781157048000,-802.52,0.00015,2]
[424779946,1781157048000,-672.68,0.00015,2]
[424779940,1781157048000,-156.91,0.00015,2]
[424779947,1781157048000,-2000.0,0.00015,2]
[424779953,1781157048000,-1667.72,0.00015,2]
[424779952,1781157048000,-2000.0,0.00015,2]
[424779954,1781157048000,-2000.0,0.00015,2]
[424779897,1781157048000,-500.0,0.00014999,2]
[424779937,1781157048000,-774.11,0.00015,2]
[424779938,1781157048000,-627.66,0.00015,2]
[424779942,1781157048000,-267.86,0.00015,2]
[424779923,1781157048000,-666.0,0.00014999,2]
[424779896,1781157048000,-500.0,0.00014999,2]
[424779927,1781157048000,-6981673.60309521,0.00015,2]
[424779900,1781157048000,-500.0,0.00014999,2]
[424779894,1781157048000,-500.0,0.00014999,2]
[424779901,1781157048000,-500.0,0.00014999,2]
[424779902,1781157048000,-500.0,0.00014999,2]
[424779904,1781157048000,-500.0,0.00014999,2]
[424779905,1781157048000,-500.0,0.00014999,2]
[424779911,1781157048000,-500.0,0.00014999,2]
[424779909,1781157048000,-500.0,0.00014999,2]
[424779908,1781157048000,-500.0,0.00014999,2]
[424779910,1781157048000,-500.0,0.00014999,2]
[424779907,1781157048000,-500.0,0.00014999,2]
[424779906,1781157048000,-500.0,0.00014999,2]
[424779925,1781157048000,-300.0,0.00014999,2]
[424779922,1781157048000,-300.0,0.00014999,2]
[424779913,1781157048000,-500.0,0.00014999,2]
[424779924,1781157048000,-300.0,0.00014999,2]
[424779921,1781157048000,-300.0,0.00014999,2]
[424779919,1781157048000,-300.0,0.00014999,2]
[424779918,1781157048000,-666.0,0.00014999,2]
[424779920,1781157048000,-300.0,0.00014999,2]
[424779916,1781157048000,-151.0,0.00014999,2]
[424779915,1781157048000,-151.0,0.00014999,2]
[424779914,1781157048000,-500.0,0.00014999,2]
[424779912,1781157048000,-500.0,0.00014999,2]
[424779917,1781157048000,-300.0,0.00014999,2]
[424779993,1781157049000,-300.0,0.00015025,2]
[424780006,1781157049000,-300.0,0.00015067,2]
[424779992,1781157049000,-300.0,0.00015025,2]
[424779997,1781157049000,-300.0,0.00015026,2]
[424779989,1781157049000,-300.0,0.00015003,2]
[424779977,1781157049000,-152.0,0.00015,2]
[424779988,1781157049000,-666.0,0.00015003,2]
[424779991,1781157049000,-167.49,0.00015004,2]
[424779990,1781157049000,-300.0,0.00015003,2]
[424779984,1781157049000,-151.0,0.00015,2]
[424779995,1781157049000,-300.0,0.00015025,2]
[424779996,1781157049000,-300.0,0.00015025,2]
[424779998,1781157049000,-300.0,0.00015026,2]
[424780004,1781157049000,-300.0,0.00015067,2]
[424780000,1781157049000,-300.0,0.00015026,2]
[424780007,1781157049000,-151.0,0.00015068,2]
[424780008,1781157049000,-151.0,0.00015068,2]
[424779999,1781157049000,-687.07472415,0.00015026,2]
[424780001,1781157049000,-377.99479175,0.00015026,2]
[424780010,1781157049000,-300.0,0.00015087,2]
[424780009,1781157049000,-300.0,0.00015087,2]
[424780003,1781157049000,-300.0,0.00015066,2]
[424780011,1781157049000,-300.0,0.00015088,2]
[424780005,1781157049000,-300.0,0.00015067,2]
[424780002,1781157049000,-300.0,0.00015066,2]
[424779982,1781157049000,-1000.0,0.00015,2]
[424779994,1781157049000,-666.0,0.00015025,2]
[424779985,1781157049000,-151.0,0.00015,2]
[424779963,1781157049000,-581.75391101,0.00015,2]
[424779981,1781157049000,-151.0,0.00015,2]
[424779955,1781157049000,-200.62,0.00015,2]
[424779964,1781157049000,-177.357647,0.00015,2]
[424779961,1781157049000,-151.0,0.00015,2]
[424779962,1781157049000,-151.0,0.00015,2]
[424779957,1781157049000,-219.97283573,0.00015,2]
[424779959,1781157049000,-151.0,0.00015,2]
[424779960,1781157049000,-200.0,0.00015,2]
[424779958,1781157049000,-151.94160012,0.00015,2]
[424779956,1781157049000,-200.0,0.00015,2]
[424779965,1781157049000,-177.357647,0.00015,2]
[424779967,1781157049000,-177.357647,0.00015,2]
[424779966,1781157049000,-177.357647,0.00015,2]
[424779987,1781157049000,-300.0,0.00015003,2]
[424779969,1781157049000,-164.33069,0.00015,2]
[424779968,1781157049000,-164.33069,0.00015,2]
[424779971,1781157049000,-164.33069,0.00015,2]
[424779973,1781157049000,-1064.597968,0.00015,2]
[424779975,1781157049000,-1064.597968,0.00015,2]
[424779976,1781157049000,-1064.597968,0.00015,2]
[424779970,1781157049000,-164.33069,0.00015,2]
[424779972,1781157049000,-200.0,0.00015,2]
[424779978,1781157049000,-151.0,0.00015,2]
[424779979,1781157049000,-157.349238,0.00015,2]
[424779983,1781157049000,-346.1279258,0.00015,2]
[424779980,1781157049000,-151.0,0.00015,2]
[424779986,1781157049000,-300.0,0.00015003,2]
[424779974,1781157049000,-1064.597968,0.00015,2]
[424780012,1781157049000,-300.0,0.00015088,2]
[424780032,1781157049000,-200.0,0.00015301,2]
[424780015,1781157049000,-200.0,0.0001515,2]
[424780044,1781157049000,-6533.64446171,0.000155,2]
[424780048,1781157049000,-1252.0,0.00015553,2]
[424780058,1781157049000,-6533.64446171,0.000158,2]
[424780049,1781157049000,-152.0,0.0001557,2]
[424780047,1781157049000,-1613.0535,0.00015546,2]
[424780050,1781157049000,-6533.64446171,0.000156,2]
[424780051,1781157049000,-400.0,0.000156,2]
[424780052,1781157049000,-200.0,0.00015609,2]
[424780053,1781157049000,-200.0,0.00015609,2]
[424780055,1781157049000,-151.0,0.00015614,2]
[424780054,1781157049000,-151.0,0.00015614,2]
[424780056,1781157049000,-453.14272179,0.00015619,2]
[424780036,1781157049000,-442.0,0.00015378,5]
[424780057,1781157049000,-388.61104204,0.00015685,2]
[424780070,1781157049000,-162.39,0.00016,2]
[424780062,1781157049000,-162.4,0.00016,2]
[424780065,1781157049000,-162.39,0.00016,2]
[424780064,1781157049000,-162.39,0.00016,2]
[424780061,1781157049000,-6533.64446171,0.000159,2]
[424780063,1781157049000,-162.39,0.00016,2]
[424780068,1781157049000,-162.39,0.00016,2]
[424780069,1781157049000,-162.39,0.00016,2]
[424780059,1781157049000,-215.83684948,0.00015877,2]
[424780066,1781157049000,-162.39,0.00016,2]
[424780067,1781157049000,-162.39,0.00016,2]
[424780014,1781157049000,-200.0,0.00015103,2]
[424780060,1781157049000,-151.0,0.00015877,2]
[424780045,1781157049000,-400.0,0.000155,2]
[424780071,1781157049000,-300.0,0.00016,2]
[424780041,1781157049000,-200.0,0.00015455,2]
[424780016,1781157049000,-200.0,0.0001515,2]
[424780017,1781157049000,-200.0,0.0001515,2]
[424780013,1781157049000,-300.0,0.00015088,2]
[424780021,1781157049000,-588.97,0.000152,2]
[424780022,1781157049000,-6533.64446171,0.000152,2]
[424780018,1781157049000,-889.2,0.000152,2]
[424780020,1781157049000,-2000.0,0.000152,2]
[424780040,1781157049000,-301.16322638,0.00015439,2]
[424780034,1781157049000,-621.83682064,0.00015355,2]
[424780025,1781157049000,-152.0,0.00015219,2]
[424780023,1781157049000,-400.0,0.000152,2]
[424780024,1781157049000,-152.0,0.00015219,2]
[424780031,1781157049000,-200.0,0.00015301,2]
[424780019,1781157049000,-910.73,0.000152,2]
[424780028,1781157049000,-218.6,0.000153,2]
[424780043,1781157049000,-200.0,0.00015455,2]
[424780027,1781157049000,-151.0,0.00015219,2]
[424780042,1781157049000,-200.0,0.00015455,2]
[424780046,1781157049000,-996.37298932,0.000155,2]
[424780037,1781157049000,-151.0,0.00015439,2]
[424780039,1781157049000,-151.0,0.00015439,2]
[424780038,1781157049000,-151.0,0.00015439,2]
[424780029,1781157049000,-6533.64446171,0.000153,2]
[424780026,1781157049000,-151.0,0.00015219,2]
[424780030,1781157049000,-400.0,0.000153,2]
[424780033,1781157049000,-200.0,0.00015301,2]
[424780035,1781157049000,-461.0,0.00015378,5]
[424780108,1781157050000,-6111.0,0.00016302,2]
[424780115,1781157050000,-1000.0,0.00016433,2]
[424780114,1781157050000,-1000.0,0.00016433,2]
[424780107,1781157050000,-200.0,0.00016301,2]
[424780097,1781157050000,-12942.03,0.000162,2]
[424780105,1781157050000,-15000.0,0.00016292,2]
[424780103,1781157050000,-3196.53210783,0.00016212,2]
[424780098,1781157050000,-297.99,0.000162,2]
[424780100,1781157050000,-316.0,0.000162,2]
[424780112,1781157050000,-666.0,0.00016432,2]
[424780113,1781157050000,-300.0,0.00016432,2]
[424780123,1781157050000,-1000.0,0.00016433,2]
[424780111,1781157050000,-300.0,0.00016432,2]
[424780110,1781157050000,-6533.64446171,0.000164,2]
[424780127,1781157050000,-1000.0,0.00016433,2]
[424780117,1781157050000,-1000.0,0.00016433,2]
[424780116,1781157050000,-1000.0,0.00016433,2]
[424780119,1781157050000,-1000.0,0.00016433,2]
[424780118,1781157050000,-1000.0,0.00016433,2]
[424780120,1781157050000,-1000.0,0.00016433,2]
[424780121,1781157050000,-1000.0,0.00016433,2]
[424780125,1781157050000,-1000.0,0.00016433,2]
[424780124,1781157050000,-1000.0,0.00016433,2]
[424780099,1781157050000,-1000.0,0.000162,2]
[424780109,1781157050000,-3196.53210783,0.00016315,2]
[424780101,1781157050000,-200.0,0.000162,2]
[424780087,1781157050000,-3196.53210783,0.00016128,2]
[424780096,1781157050000,-3685.07,0.000162,2]
[424780122,1781157050000,-1000.0,0.00016433,2]
[424780072,1781157050000,-215.95576085,0.00016,3]
[424780073,1781157050000,-191.99780672,0.00016,2]
[424780075,1781157050000,-6111.0,0.00016035,2]
[424780074,1781157050000,-350.0,0.00016014,2]
[424780078,1781157050000,-15000.0,0.00016054,2]
[424780080,1781157050000,-168.90688265,0.00016079,2]
[424780081,1781157050000,-15000.0,0.00016091,2]
[424780077,1781157050000,-3196.53210783,0.00016051,2]
[424780079,1781157050000,-3196.53210783,0.00016065,2]
[424780076,1781157050000,-3196.53210783,0.00016044,2]
[424780082,1781157050000,-3196.53210783,0.00016091,2]
[424780084,1781157050000,-6533.64446171,0.000161,2]
[424780085,1781157050000,-7717.02363909,0.0001611,15]
[424780088,1781157050000,-363.52374984,0.00016174,2]
[424780091,1781157050000,-3196.53210783,0.00016198,2]
[424780083,1781157050000,-1672.7364795,0.00016094,2]
[424780089,1781157050000,-213.66695751,0.00016174,2]
[424780092,1781157050000,-300.0,0.00016199,2]
[424780090,1781157050000,-3196.53210783,0.0001619,2]
[424780086,1781157050000,-350.0,0.00016119,2]
[424780094,1781157050000,-300.0,0.00016199,2]
[424780104,1781157050000,-350.0,0.00016249,2]
[424780093,1781157050000,-666.0,0.00016199,2]
[424780095,1781157050000,-6533.64446171,0.000162,2]
[424780102,1781157050000,-309.0,0.000162,2]
[424780126,1781157050000,-1000.0,0.00016433,2]
[424780106,1781157050000,-3196.53210783,0.00016293,2]
[424780128,1781157050000,-1000.0,0.00016433,2]
[424780152,1781157050000,-151.0,0.00016438,2]
[424780154,1781157050000,-151.0,0.00016438,2]